Cogmind - Beta 10.2 @@@ ROGUE MODE // 2021.11.26 @ 21:33:39 Player: DaddyWalrus Result: Destroyed by G-47 Trooper with Particle Gun Performance ------------- Evolutions (1) 500 Regions Visited (2) 400 Robots Destroyed (29) 145 Value Destroyed (756) 756 Prototype IDs (0) 0 Alien Tech Used (0) 0 Bonus (0) 0 TOTAL SCORE: 1801 Bonus ------- None Cogmind --------- Core Integrity 0/400 Matter 291/300 Energy 95/100 System Corruption 10% Temperature Cool (324) Movement Core (150) Ox2 Location -9/Materials Parts ------- > --- POWER (1) -------- (None) > --- PROPULSION (4) --- (None) > --- UTILITY (2) ------ Medium Storage Unit > --- WEAPON (2) ------- (None) > --- INVENTORY (8) ---- Ion Engine High-capacity Storage Unit Visual Processing Unit Improved Sensor Array Signal Interpreter Integration Mediator Peak State ------------ > --- POWER ------------ Ion Engine > --- PROPULSION ------- Light Treads Light Treads Aluminum Leg > --- UTILITY ---------- Medium Storage Unit Hardened Light Armor Plating > --- WEAPON ----------- Particle Gun Particle Gun > --- INVENTORY -------- High-capacity Storage Unit Visual Processing Unit Sensor Array Signal Interpreter Integration Mediator Particle Gun Grenade Launcher [Rating: 12] Favorites ----------- Power Ion Engine Engine Ion Engine Propulsion Aluminum Leg Treads Light Treads Leg Aluminum Leg Utility Small Storage Unit Device Improved Heat Sink Storage Small Storage Unit Protection Light Armor Plating Weapon Particle Gun Energy Gun Particle Gun Energy Cannon Beam Cannon Ballistic Gun Light Assault Rifle Ballistic Cannon Light Cannon Launcher Grenade Launcher Special Melee Weapon Datajack Build | -11 -10 -9 ------- Run | Scr Mat Mat Slots Evolved 2 | . . 2 Power . | . . . Propulsion 2 | . . 2 Utility . | . . . Weapon . | . . . Parts Attached 44 | 6 25 13 Power 6 | 1 4 1 Engine 6 | 1 4 1 Core . | . . . Reactor . | . . . Propulsion 9 | 2 5 2 Treads 5 | . 3 2 Leg 4 | 2 2 . Wheel . | . . . Hover . | . . . Flight . | . . . Utility 10 | 1 6 3 Device 3 | . 3 . Storage 4 | 1 2 1 Processor . | . . . Hackware . | . . . Protection 3 | . 1 2 Artifact . | . . . Weapon 19 | 2 10 7 Energy Gun 8 | . 3 5 Energy Cannon 1 | . 1 . Ballistic Gun 5 | 2 2 1 Ballistic Cannon 2 | . 2 . Launcher 2 | . 1 1 Special Weapon . | . . . Impact Weapon . | . . . Slashing Weapon . | . . . Piercing Weapon . | . . . Special Melee Weapon 1 | . 1 . Unidentified Prototypes . | . . . Parts Lost 20 | . 6 14 Power 3 | . 1 2 Propulsion 5 | . 1 4 Utility 3 | . 1 2 Weapon 9 | . 3 6 Highest Loss Streak 10 | . 5 10 Average Slot Usage (%) 88 | . 98 69 Engine 12 | . 14 10 Treads 9 | . 11 4 Leg 14 | . 15 11 Device 4 | . 6 . Storage 12 | . 14 11 Protection 7 | . 7 9 Energy Gun 12 | . 10 15 Ballistic Gun 5 | . 7 1 Ballistic Cannon 4 | . 5 . Launcher 2 | . 1 3 Naked Turns . | . . . Heaviest Build 44 | 10 44 24 Greatest Support 40 | 20 40 40 Greatest Overweight (x) 4 | 1 4 2 Average Overweight (x) . | . . 1 Largest Inventory Capacity 12 | 6 12 8 Average Capacity 7 | 5 8 7 Most Carried 12 | 4 12 8 Average Carried 6 | 2 6 6 Final Capacity 8 | 6 6 8 Final Carried 6 | 4 6 6 Class Distribution -------------------- 71% | Mutant 28% | Scavenger-Mutant Dominant Class ---------------- Mutant | -10/Materials Mutant | -9/Materials Resources | -11 -10 -9 ----------- Run | Scr Mat Mat Matter Collected 950 | 264 425 261 Remotely . | . . . Salvage Created 936 | . 651 285 Parts 64 | . 40 24 Haulers Intercepted 1 | . . 1 Recyclers Shooed 3 | 1 1 1 Parts Field Recycled . | . . . Retrieved Matter . | . . . Parts Self-Destructed . | . . . Prevented . | . . . Kills | -11 -10 -9 ------- Run | Scr Mat Mat Combat Hostiles Destroyed 22 | . 14 8 Guns 14 | . 10 4 Cannons 5 | . 4 1 AOE 3 | . . 3 Classes Destroyed 7 | . 4 3 Worker 1 | . . 1 Hauler 1 | . . 1 Recycler 2 | . 2 . Watcher 3 | . 2 1 Swarmer 6 | . 3 3 Grunt 13 | . 11 2 Sentry 3 | . . 3 Best Kill Streak 4 | . 4 2 Combat Bots Only 3 | . 3 2 Max Kills in Single Turn 2 | . 2 1 Gunslinging 1 | . 1 . Exploded 1 | . . 1 Melee . | . . . Uniques/NPCs Destroyed . | . . . Combat | -11 -10 -9 -------- Run | Scr Mat Mat Damage Taken 2606 | . 888 1718 Core 478 | . 77 401 Absorbed by Shields . | . . . Core Remaining (%) 84 | 100 69 . Volleys Fired 98 | 1 64 33 Largest 2 | 2 2 2 Hottest 130 | 40 95 130 Shots Fired 184 | 2 124 58 Gun 139 | 2 92 45 Cannon 35 | . 30 5 Launcher 10 | . 2 8 Special . | . . . Kinetic 74 | 2 62 10 Thermal 91 | . 51 40 Explosive 10 | . 2 8 Electromagnetic 9 | . 9 . Robot Hit Streak 8 | 1 6 8 Robot Miss Streak 6 | 1 4 6 Penetration Max . | . . . Secondary Targets 2 | . 2 . Max Gunslinging Chain 1 | . 1 . Shots Hit Robots 107 | 1 78 28 Core Hits 58 | 1 38 19 Critical Hits . | . . . Critical Kills . | . . . Critical Parts Destroyed . | . . . Melee Attacks 1 | . 1 . Impact . | . . . Slashing . | . . . Piercing . | . . . Sneak Attacks . | . . . Combat Hostiles . | . . . Follow-up Attacks . | . . . Damage Inflicted 1635 | 20 1073 542 Guns 1011 | 20 636 355 Cannons 324 | . 261 63 Explosions 300 | . 176 124 Melee . | . . . Ramming . | . . . Kinetic 460 | 20 347 93 Thermal 883 | . 558 325 Explosive 205 | . 81 124 Electromagnetic 87 | . 87 . Impact . | . . . Slashing . | . . . Piercing . | . . . Highest Corruption 10 | . 4 10 Average Corruption 6 | . 3 9 Corruption Purged . | . . . Effects 52 | . 21 31 Message Errors 12 | . 6 6 Matter Fused 12 | . 6 6 Heat Flow Errors 2 | . 1 1 Energy Discharges 6 | . 3 3 Data Loss (minor) 4 | . 1 3 Data Loss (major) 2 | . . 2 Misdirections 3 | . . 3 Targeting Errors 11 | . 4 7 Overload Shots . | . . . Overflow Damage 126 | . 117 9 Projectiles . | . . . Explosions 126 | . 117 9 Melee . | . . . Knockbacks 1 | . 1 . Impact . | . . . Kinetic 1 | . 1 . Secondary . | . . . Self-Inflicted Damage 176 | . 133 43 Shots 3 | . 2 1 Rammed . | . . . Targets Rammed . | . . . Kicked . | . . . Crushed . | . . . Highest Temperature 402 | . 319 402 Average Temperature 114 | . 76 158 Received Heat Transfer 867 | . 390 477 Effects 5 | . 1 4 Shutdowns 1 | . . 1 Energy Bleed 3 | . 1 2 Matter Decay 1 | . . 1 Siege Activations . | . . . Robots Corrupted . | . . . Combat Hostiles . | . . . Parts Fried . | . . . Impact Corruptions . | . . . Robots Melted . | . . . Combat Hostiles . | . . . Parts Melted 4 | . 4 . Heat Transferred 1894 | . 1129 765 Parts Sabotaged . | . . . Parts Stolen . | . . . Parts Stripped . | . . . Power Chain Reactions . | . . . Missiles Intercepted . | . . . Alert | -11 -10 -9 ------- Run | Scr Mat Mat Peak Influence 225 | . 225 158 Initial 11 | . . 11 Average 68 | . 60 91 Maximum Alert Level 1 | . 1 . Low Security (%) 94 | 100 92 100 Level 1 5 | . 7 . Level 2 . | . . . Level 3 . | . . . Level 4 . | . . . Level 5 . | . . . High Security . | . . . Max Security . | . . . Squads Dispatched 6 | . 2 4 Investigation 1 | . 1 . Extermination . | . . . Reinforcement 5 | . 1 4 Assault . | . . . Garrison . | . . . Intercept . | . . . Construction Impeded . | . . . Haulers Reinforced . | . . . Stealth | -11 -10 -9 --------- Run | Scr Mat Mat Distress Signals 4 | . 3 1 Communications Jammed . | . . . Distress Signals . | . . . Times Spotted 54 | . 26 28 Peak Tracking Total 9 | . 3 9 Tactical Retreats 2 | . 1 1 Traps | -11 -10 -9 ------- Run | Scr Mat Mat Traps Triggered 5 | . 3 2 Indirectly . | . . . Trap Hack Attempts . | . . . Triggered . | . . . Disarmed . | . . . Reprogrammed . | . . . Reused . | . . . Traps Extracted . | . . . Installed . | . . . Triggered . | . . . Machines | -11 -10 -9 ---------- Run | Scr Mat Mat Machines Disabled 3 | . 2 1 Max in Single Turn 2 | . 2 1 Machines Sabotaged . | . . . Garrisons Compromised . | . . . Overloaded Fab Kills . | . . . Fab Network Shutdowns . | . . . Hacking | -11 -10 -9 --------- Run | Scr Mat Mat Machines Accessed 7 | . 7 . Terminals 7 | . 7 . Fabricators . | . . . Repair Stations . | . . . Recycling Units . | . . . Scanalyzers . | . . . Garrison Access . | . . . Total Hacks 10 | . 10 . Successful 5 | . 5 . Failed 5 | . 5 . Catastrophic 1 | . 1 . Database Lockouts . | . . . Manual . | . . . Terminals 10 | . 10 . Fabricators . | . . . Repair Stations . | . . . Recycling Units . | . . . Scanalyzers . | . . . Garrison Access . | . . . Terminal Hacks 5 | . 5 . Record 1 | . 1 . Branch Access Points 1 | . 1 . Emergency Access Points 2 | . 2 . Zone Layout 1 | . 1 . Fabricator Hacks . | . . . Repair Station Hacks . | . . . Recycling Unit Hacks . | . . . Scanalyzer . | . . . Garrison Access Hacks . | . . . Unauthorized Hacks . | . . . Terminals . | . . . Fabricators . | . . . Repair Stations . | . . . Recycling Units . | . . . Scanalyzers . | . . . Garrison Access . | . . . Data Cores Recovered . | . . . Used . | . . . Hacking Detections 3 | . 3 . Full Trace Events . | . . . Feedback Events . | . . . Feedback Blocked . | . . . Robot Schematics Acquired . | . . . Robots Built . | . . . Matter . | . . . Time . | . . . Total Robot Build Rating . | . . . Part Schematics Acquired . | . . . Parts Built . | . . . Matter . | . . . Time . | . . . Total Part Build Rating . | . . . Parts Repaired . | . . . Time . | . . . Parts Recycled . | . . . Recycled Matter . | . . . Retrieved Matter . | . . . Retrieved Components . | . . . Parts Scanalyzed . | . . . Part Schematics Acquired . | . . . Parts Damaged . | . . . Bothacking | -11 -10 -9 ------------ Run | Scr Mat Mat Used RIF Installer . | . . . Robots Hacked 1 | . 1 . Non-combat . | . . . Combat 1 | . 1 . Robot Hacks Applied 1 | . 1 . parse_system 1 | . 1 . Relay Couplers Released . | . . . Robots Rewired . | . . . Allies Hacked . | . . . Hacks Repelled . | . . . Allies | -11 -10 -9 -------- Run | Scr Mat Mat Total Allies . | . . . Largest Group . | . . . Highest-Rated Group . | . . . Highest-Rated Ally . | . . . Total Orders . | . . . Ally Attacks . | . . . Total Damage . | . . . Kills . | . . . Allies Corrupted . | . . . Allies Melted . | . . . Intel | -11 -10 -9 ------- Run | Scr Mat Mat Robot Analysis Total . | . . . Derelict Logs Recovered . | . . . Drone Launches . | . . . Drone Recoveries . | . . . Exploration | -11 -10 -9 ------------- Run | Scr Mat Mat Turns Passed 2110 | 75 1351 684 Spaces Moved 1165 | 53 784 328 Core 16 | 13 1 2 Treads 305 | . 240 65 Legs 844 | 40 543 261 Wheels . | . . . Hover . | . . . Flight . | . . . Fastest Speed 50 | 50 120 120 Average Speed 144 | 109 137 164 Slowest Speed 250 | 120 250 180 Overloaded Moves . | . . . Propulsion Burnouts . | . . . Robots Hopped . | . . . Cave-ins Triggered 1 | . . 1 Exploration Rate (%) 37 | 3 82 27 Regions Visited 2 Branch Regions . Pre-discovered Areas . | . . . Known Exits Taken . | . . . Unknown Exits Taken 2 | 1 1 . Scrap Searched . | . . . Spaces Dug . | . . . Terrain Destroyed 107 | . 44 63 Melee . | . . . Projectile . | . . . AOE 107 | . 44 63 Terrain Rammed . | . . . Walls Destroyed . | . . . Machines Disabled . | . . . Actions | -11 -10 -9 --------- Run | Scr Mat Mat Total 1417 | 66 936 415 Wait 44 | . 22 22 Move 1163 | 52 783 328 Hop . | . . . Pick Up 40 | 6 23 11 Fast Attach 20 | 5 9 6 Attach 13 | 1 6 6 Detach 1 | . . 1 Swap 11 | . 10 1 Drop 26 | 1 18 7 Fire 98 | 1 64 33 Melee 1 | . 1 . Ram . | . . . Kick . | . . . Crush . | . . . Escape Stasis . | . . . Rewire . | . . . Trap . | . . . Miscellaneous . | . . . Route ------- -11/Scrapyard -10/Materials (discovered 2 exits: [*Mat] / *Min) -9/Materials (discovered 1 exit: [*Min]) History --------- Turn | Location | Event 9 | -11/Scrapyard | Discovered new exit (range 15) 76 | -11/Scrapyard | Entered Materials 326 | -10/Materials | Build established: Mutant 567 | -10/Materials | Discovered new exit (range 7) 892 | -10/Materials | Lost 5 parts (1p1n1u2w) 989 | -10/Materials | Discovered new exit (range 15) 1185 | -10/Materials | Build established: Scavenger-Mutant 1292 | -10/Materials | Identified exit to Mines 1427 | -10/Materials | Entered another Materials area 1427 | -9/Materials | Evolved 2 slots: Propulsion x2 1479 | -9/Materials | Crushed by falling debris 1510 | -9/Materials | Lost 4 parts (1p1n1u1w) 1535 | -9/Materials | Discovered new exit (range 12) 1562 | -9/Materials | Met 8R-AWN 1749 | -9/Materials | System corruption reached 10% 1780 | -9/Materials | Build established: Mutant 2099 | -9/Materials | Core integrity fell below 50% 2109 | -9/Materials | Core integrity fell below 20% 2111 | -9/Materials | Destroyed by G-47 Trooper with Particle Gun Last Messages --------------- 02078_ The unstable cave ceiling collapses. 02090_ System corrupted: Matter fused (-6). 02091_ Particle Gun destroyed. 02096_ System corrupted: Particle Gun targeting data glitched. 02096_ G-34 Mercenary destroyed. 02097_ Particle Gun destroyed. 02098_ Hrd. Light Armor Plating destroyed. 02098_ Lgt. Treads destroyed. 02101_ Particle Gun destroyed. 02102_ Acquired Sml. Laser. 02103_ Overheating: Matter decay (-32). 02103_ U-05 Engineer builds a Door. 02103_ Acquired 36 matter. 02104_ Ion Engine destroyed. 02105_ Overheating: Energy bleed (-25). 02105_ Aluminum Leg destroyed. 02106_ BMJFQHB## 02106_ Sml. Laser destroyed. 02107_ Lgt. Treads destroyed. 02109_ U-05 Engineer lays Concrete. Map ----- +----------------------------------------------------+ | ????????????????????????????????????????????????? | | ????????????????????????????????????????????????? | | ????????????????????????????????????????????????? | | ????????????????????????????????????????????????? | | ???????????????????????????????????????????#????? | | ??????????????????????????????????????????? ????? | | ??????????????????????????????????????#???# #???? | | ????????????????????????????????????? #???# #???? | | ??????????????????????????#####????? #???# #???? | | ??????????????????????????# ##### #???# #???? | | ??????????????????????????? = ????# #???? | | ??????????????????????????? [ [% ??????# #???? | | ??????????????????????????? ##/######### #???? | | ???????????????????????????# ## % ## #???? | | ???????????????????????????# ## + #???? | | ???????????????????????????# ## ## #???? | | ???????????????????????????#Y ## """ """ ## #???? | | ??????????????????????????## ## """ """ ## #???? | | ????????????????##+#####+## # """ """ ## #???? | | ????????????????# ! # ## #???? | | ???????????????? + ## #???? | | ???????????????????????#### u############ #???? | | ??????????????????????### gY*%##??????????# #???? | | ??????????????????????# gg =#????######## ##??? | | ??????????????????????# !!g*]]#????# # #??? | | ??????????????????????##Y@**]]#????# #??? | | ???????????????????? # # #????# # #??? | | ???????????????? """ #########????######## ##??? | | ???????????????? """ ??????????############ #???? | | ?????????????????"""???????????# [ ! #???? | | ????????????????? ????????????# # ##+#####??? | | ????????????????##??????????????##??#%# % #??? | | ????????????????????????????????????#=# #??? | | ????????????????????????????????????# # #??? | | ????????????????????????????????????# # #??? | | ???????????????????????????????######+# #??? | | ???????????????????????????????# # #??? | | ???????????????????????????????# T ########??? | | ???????????????????????????????# #?????????? | | ???????????????????????????????# #?????????? | | ???????????????????????????????# #?????????? | | ???????????????????????????????# #?????????? | | ?????????????????################+#####?????????? | | ???????????????? #??????????? | | ???????????????? ! ! #??????????? | | ???????????????? !% ! #??????????? | | ???????????????????####### ####+####??????????? | | ?????????????????????????# ??# #??????????? | | ?????????????????????????# ???# #??????????? | | ?????????????????????????#????# #??????????? | +----------------------------------------------------+ Best States ------------- Heat Dissipation 42 Energy Generation 10 Energy Capacity 250 Matter Stores 300 Matter Capacity 300 Sight Range 16 Terrain Scan Density 10 Armor Coverage 150 Evasion (%) 40 Recoil Reduction 2 Item Schematics ----------------- None Robot Schematics ------------------ None Fabricated ------------ Nothing Alien Tech Used ----------------- None Achievements -------------- System Compromised Unlikely Earthworm Challenges ------------ None Game ------ Seed WardroneLaserUnit Manual? 0 Play Time 00:47:53 Cumulative 7.3 hours Start 2021.11.25 @ 21:17:20 End 2021.11.26 @ 21:33:39 Sessions 3 Manual Loads 0 Difficulty Rogue Special Mode None Game No. 4 Rogue 4 Adventurer 0 Explorer 0 Win Type - Total 0 Types 0/0/0/0/0/0/0/0/0 Lore% 4 Gallery% 9 Achievement% 9 Wizard Run 0 Options --------- ASCII 0 Keyboard 0 Movement Numpad Keybinds 0 Fullscreen 1 Font 36/Smallcaps Map View 76x50 Tactical HUD 1 Map Filters NONE Filters NONE Steam 1 RUN: a85ceb6a-79d3-4824-8887-9f4245d278ed